fUST/lending_fUST_20240207
["ID","MTS","AMOUNT","RATE_DAILY","PERIOD"]
[313393945,1707277841917,-814.95,0.00027397,3]
[313393946,1707277841927,-1525.35,0.00027397,3]
[313393947,1707277841940,-1089.73,0.00027397,3]
[313393948,1707277841949,-500.0,0.00027397,3]
[313393949,1707277841959,-670.33,0.00027397,3]
[313393950,1707277841968,-8413.01,0.00027397,3]
[313393951,1707277841978,-1768.8,0.00027397,3]
[313393952,1707277841987,-1628.11,0.00027397,3]
[313393953,1707277841997,-643.58,0.00027397,3]
[313393954,1707277842006,-672.71,0.00027397,3]
[313393955,1707277842016,-500.0,0.00027397,3]
[313393956,1707277842025,-5886.07,0.00027397,3]
[313393957,1707277842034,-684.09,0.00027397,3]
[313393958,1707277842043,-1553.0,0.00027397,3]
[313393959,1707277842053,-500.0,0.00027397,2]
[313393960,1707277842062,-2502.82,0.00027397,3]
[313393961,1707277842071,-636.33,0.00027397,3]
[313393962,1707277842081,-721.96,0.00027397,3]
[313393963,1707277842090,-2516.79,0.00027397,3]
[313393964,1707277842098,-13471.58,0.00027397,3]
[313393965,1707277842108,-500.0,0.00027397,3]
[313393966,1707277842117,-1570.52,0.00027397,3]
[313393967,1707277842127,-500.0,0.0002767,2]
[313393968,1707277842136,-500.0,0.0002767,2]
[313393969,1707277842145,-500.0,0.0002767,2]
[313393970,1707277842154,-500.0,0.0002767,2]
[313393971,1707277842163,-444.31139833,0.0002767,2]
[313393972,1707277842173,-500.0,0.0002767,2]
[313393973,1707277842184,-369.02751597,0.0002767,2]
[313393974,1707277842193,-500.0,0.00027671,3]
[313393975,1707277842203,-524.9,0.00027671,3]
[313393976,1707277842212,-500.0,0.00027671,3]
[313393977,1707277842223,-308.50050719,0.00027671,3]
[313393978,1707277842233,-500.0,0.00027671,3]
[313393979,1707277842243,-500.0,0.00027671,3]
[313393980,1707277842253,-616.42,0.00027671,2]
[313393981,1707277842262,-564.24,0.00027671,3]
[313393982,1707277842272,-940.84,0.00027671,3]
[313393983,1707277842281,-559.53,0.00027671,3]
[313393984,1707277842292,-500.0,0.00027671,3]
[313393985,1707277842303,-500.0,0.00027671,3]
[313393986,1707277842313,-500.0,0.00027671,3]
[313393987,1707277842324,-492.15284294,0.00027671,3]
[313393988,1707277842333,-500.0,0.00027671,3]
[313393989,1707277842343,-1069.64,0.00027671,3]
[313393990,1707277842352,-736.74,0.00027671,3]
[313393991,1707277842362,-2193.2,0.00027671,3]
[313393992,1707277842371,-918.72,0.00027671,3]
[313393993,1707277842381,-2973.04,0.00027671,3]
[313393994,1707277842390,-1230.02,0.00027671,3]
[313393995,1707277842400,-866.47,0.00027671,3]
[313393996,1707277842409,-500.0,0.00027671,3]
[313393997,1707277842419,-3049.32,0.00027671,3]
[313393998,1707277842428,-500.0,0.00027671,3]
[313393999,1707277842437,-4976.67,0.00027671,3]
[313394000,1707277842446,-814.95,0.00027671,3]
[313394001,1707277842456,-1525.35,0.00027671,3]
[313394002,1707277842465,-1089.73,0.00027671,3]
[313394003,1707277842474,-529.88814968,0.00027671,3]
[313394004,1707277842484,-670.33,0.00027671,3]
[313394005,1707277842494,-8413.01,0.00027671,3]
[313394006,1707277842503,-1768.8,0.00027671,3]
[313394007,1707277842513,-1628.11,0.00027671,3]
[313394008,1707277842522,-643.58,0.00027671,3]
[313394009,1707277842531,-672.71,0.00027671,3]
[313394010,1707277842541,-364.76916305,0.00027671,3]
[313394011,1707277842550,-5886.07,0.00027671,3]
[313394012,1707277842560,-684.09,0.00027671,3]
[313394014,1707277842570,-1553.0,0.00027671,3]
[313394015,1707277842579,-500.0,0.00027671,2]
[313394016,1707277842588,-2502.82,0.00027671,3]
[313394017,1707277842597,-636.33,0.00027671,3]
[313394018,1707277842606,-721.96,0.00027671,3]
[313394019,1707277842615,-2516.79,0.00027671,3]
[313394020,1707277842624,-13471.58,0.00027671,3]
[313394021,1707277842632,-500.0,0.00027671,3]
[313394022,1707277842641,-1570.52,0.00027671,3]
[313394023,1707277842650,-396.9943227,0.00027671,2]
[313394024,1707277842658,-153.0,0.00027671,2]
[313394025,1707277842668,-399.6109539,0.00027671,2]
[313394026,1707277842678,-153.0,0.00027671,2]
[313394027,1707277842686,-371.2448491,0.00027671,2]
[313394028,1707277842696,-392.04758577,0.00027781,2]
[313394029,1707277842704,-3000.0,0.000279,2]
[313394030,1707277842714,-500.0,0.000279,2]
[313394031,1707277842722,-171.759388,0.000279,3]
[313394032,1707277842731,-171.759388,0.000279,3]
[313394033,1707277842740,-500.0,0.00027945,3]
[313394034,1707277842749,-524.9,0.00027945,3]
[313394035,1707277842758,-260.89520153,0.00027945,3]
[313394036,1707277842767,-500.0,0.00027945,3]
[313394037,1707277842859,-500.0,0.00027945,3]
[313394038,1707277842869,-616.42,0.00027945,2]
[313394039,1707277842878,-564.24,0.00027945,3]
[313394040,1707277842887,-940.84,0.00027945,3]
[313394041,1707277842897,-559.53,0.00027945,3]
[313394042,1707277842907,-500.0,0.00027945,3]
[313394044,1707277842916,-550.0929465,0.00027945,3]
[313394046,1707277842925,-500.0,0.00027945,3]
[313394047,1707277842935,-1069.64,0.00027945,3]
[313394048,1707277842949,-736.74,0.00027945,3]
[313394049,1707277842958,-2193.2,0.00027945,3]
[313394050,1707277842967,-918.72,0.00027945,3]
[313394051,1707277842975,-2973.04,0.00027945,3]
[313394052,1707277842985,-1230.02,0.00027945,3]
[313394053,1707277842995,-866.47,0.00027945,3]
[313394054,1707277843004,-500.0,0.00027945,3]
[313394055,1707277843013,-3049.32,0.00027945,3]
[313394056,1707277843023,-500.0,0.00027945,3]
[313394057,1707277843034,-4976.67,0.00027945,3]
[313394058,1707277843045,-814.95,0.00027945,3]
[313394059,1707277843056,-1525.35,0.00027945,3]
[313394060,1707277843066,-1089.73,0.00027945,3]
[313394061,1707277843076,-670.33,0.00027945,3]
[313394062,1707277843086,-8413.01,0.00027945,3]
[313394063,1707277843095,-1768.8,0.00027945,3]
[313394064,1707277843107,-1628.11,0.00027945,3]
[313394065,1707277843116,-643.58,0.00027945,3]
[313394066,1707277843125,-672.71,0.00027945,3]
[313394067,1707277843134,-5886.07,0.00027945,3]
[313394068,1707277843145,-684.09,0.00027945,3]
[313394069,1707277843156,-1553.0,0.00027945,3]
[313394070,1707277843166,-500.0,0.00027945,2]
[313394071,1707277843175,-2502.82,0.00027945,3]
[313394072,1707277843186,-636.33,0.00027945,3]
[313394073,1707277843195,-721.96,0.00027945,3]
[313394074,1707277843205,-2516.79,0.00027945,3]
[313394075,1707277843214,-13471.58,0.00027945,3]
[313394076,1707277843224,-500.0,0.00027945,3]
[313394077,1707277843233,-1570.52,0.00027945,3]
[313394078,1707277843243,-644.98002426,0.00027999,2]
[313394079,1707277843252,-409.15309855,0.00027999,2]
[313394080,1707277843261,-500.0,0.00027999,2]
[313394081,1707277843271,-404.33238622,0.00027999,2]
[313394082,1707277843280,-224.1867446,0.00027999,2]
[313394083,1707277843289,-254.25771808,0.00027999,2]
[313394084,1707277843299,-500.0,0.00027999,2]
[313394085,1707277843308,-459.57779537,0.00028,3]
[313394086,1707277843318,-155.00775039,0.00028,2]
[313394087,1707277843327,-833.99961186,0.00028,20]
[313394088,1707277843336,-1014.76,0.00028,2]
[313394089,1707277843346,-29397.82931076,0.00028,2]
[313394090,1707277843355,-2743.54746489,0.00028,4]
[313394091,1707277843364,-162768.80232675,0.00028,7]
[313394092,1707277843441,-153.0,0.00025342,2]
[313394093,1707277843450,-3632.70935388,0.00027377,3]
[313394094,1707277843462,-493.84325187,0.00027377,3]
[313394148,1707279034708,-155.0356582,0.00020999,4]
[313394150,1707279034718,-2007.2143418,0.00020999,2]
[313394152,1707279034729,-1459.81512322,0.00020999,2]
[313394275,1707279046384,-1028.09610145,0.00020999,2]
[313394276,1707279046394,-13875.18967337,0.00021,2]
[313394277,1707279046405,-9300.38448523,0.00021,2]
[313394283,1707280020597,0.016972,0.00027397,120]
[313394284,1707280020631,659.170441,0.00027397,120]
[313394352,1707280234765,-155.04031048,0.00020957,4]
[313394354,1707280234775,-1039.39401101,0.00020999,2]
[313394386,1707280240207,-3455.73155546,0.00020999,2]
[313394387,1707280240217,-586.4287152,0.00021,2]
[313394388,1707280240227,-194.86195482,0.00021,2]
[313394389,1707280240237,-295.06490263,0.00022,4]
[313394390,1707280240247,-3000.0,0.000235,2]
[313394391,1707280240257,-1104.79142891,0.00023824,2]
[313394392,1707280240269,-4802.33562119,0.00023824,2]
[313394393,1707280240279,-155.62919754,0.00024881,2]
[313394394,1707280240289,-1624.63577606,0.00024903,2]
[313394395,1707280240298,-1168.09714626,0.00024903,2]
[313394396,1707280240309,-928.73353089,0.00024909,2]
[313394397,1707280240321,-1516.19744477,0.00024909,2]
[313394398,1707280240331,-1083.80550459,0.00024914,2]
[313394399,1707280240340,-2567.03104015,0.00024954,2]
[313394400,1707280240350,-168.808165,0.00024961,2]
[313394401,1707280240359,-199.8729763,0.00026027,2]
[313394402,1707280240369,-306.0,0.00026027,2]
[313394403,1707280240378,-2211.92651665,0.00026572,2]
[313394404,1707280240390,-5193.83188074,0.00026572,2]
[313394405,1707280240400,-3104.29711932,0.00026573,5]
[313394406,1707280240411,-1895.70288068,0.00026573,5]
[313394407,1707280240421,-153.0,0.00026849,2]
[313394408,1707280240430,-153.0,0.00026849,2]
[313394409,1707280240439,-153.0,0.00026849,2]
[313394410,1707280240449,-153.0,0.00026849,2]
[313394411,1707280240458,-153.0,0.00026849,2]
[313394412,1707280240467,-153.0,0.00026849,2]
[313394413,1707280240477,-310.9248545,0.00026849,2]
[313394414,1707280240486,-4716.98999132,0.00027,7]
[313394415,1707280240499,-10048.23739768,0.00027,7]
[313394466,1707280557886,494.390559,0.00027397,120]
[313394467,1707281001652,370.792919,0.00027397,120]
[313394612,1707281446710,-155.0294556,0.0002462,4]
[313394613,1707281446720,-155.0294556,0.00024621,2]
[313394614,1707281446729,-658.84783541,0.00024655,2]
[313394615,1707281446739,-498.0884136,0.00024959,2]
[313394616,1707281446764,-252.26028481,0.00024959,2]
[313394617,1707281464389,278.094689,0.00027397,120]
[313394618,1707281670225,1718.65927919,0.0003,120]
[313394620,1707282237723,208.571016,0.00027397,120]
[313394668,1707282631957,-155.0294556,0.00023799,4]
[313394669,1707282631967,-10602.31729039,0.000238,2]
[313394771,1707282641222,-419.266,0.000238,2]
[313394837,1707282645904,-3630.25828182,0.000238,2]
[313394856,1707282685494,208.571016,0.00027397,120]
[313394857,1707283138173,208.571016,0.00027397,120]
[313394858,1707283735704,208.571016,0.00027397,120]
[313395007,1707283838167,-155.02480397,0.00021699,4]
[313395008,1707283838177,-470.87519603,0.00021699,2]
[313395009,1707283838190,-1573.80522887,0.00021699,2]
[313395010,1707283838200,-497.06282314,0.000217,2]
[313395011,1707283838209,-1335.29121966,0.00022436,2]
[313395012,1707283838274,-3245.16864634,0.00022436,2]
[313395013,1707283838284,-3448.543819,0.00022476,2]
[313395014,1707283838293,-175.74667705,0.000237,2]
[313395015,1707283838302,-155.02480397,0.00023798,2]
[313395016,1707283838312,-35348.15842779,0.000238,2]
[313395017,1707283838321,-157.97466149,0.000238,2]
[313395018,1707283838330,-1314.34803773,0.000238,2]
[313395019,1707283838339,-4039.14093432,0.00024,2]
[313395020,1707283838349,-380.0,0.00024658,2]
[313395021,1707283838358,-200.0,0.00024722,7]
[313395022,1707283838367,-151.0,0.0002495,2]
[313395023,1707283838376,-154.053261,0.00024957,2]
[313395024,1707283838385,-4249.65130159,0.00024959,2]
[313395025,1707283838393,-154.351308,0.00024959,2]
[313395026,1707283838402,-151.0,0.00024959,2]
[313395027,1707283838411,-153.863126,0.00024959,2]
[313395028,1707283838420,-151.0,0.00024959,2]
[313395029,1707283838429,-151.0,0.00024959,2]
[313395030,1707283838438,-153.193432,0.00024959,2]
[313395031,1707283838447,-151.0,0.00024959,2]
[313395032,1707283838457,-251.499476,0.00024959,2]
[313395033,1707283838465,-251.499476,0.00024959,2]
[313395034,1707283838475,-244.311395,0.00024967,2]
[313395035,1707283838484,-251.499476,0.00024967,2]
[313395036,1707283838493,-251.499476,0.00024967,2]
[313395037,1707283838502,-8462.54,0.00024967,3]
[313395038,1707283838511,-7052.12,0.00024967,3]
[313395039,1707283838520,-151.0,0.0002497,2]
[313395040,1707283838529,-151.0,0.00024977,2]
[313395041,1707283838538,-251.499476,0.00024977,2]
[313395042,1707283838547,-251.499476,0.00024977,2]
[313395043,1707283838556,-10155.05,0.00024977,3]
[313395044,1707283838565,-838.13844931,0.00024987,2]
[313395045,1707283838574,-31135.88212984,0.00024987,2]
[313395046,1707283838583,-4470.62095224,0.00024987,2]
[313395047,1707283838592,-151.0,0.00024987,2]
[313395048,1707283838601,-151.0,0.00024987,2]
[313395049,1707283838610,-7148.03620407,0.00024987,2]
[313395050,1707283838619,-169.320623,0.00024987,2]
[313395051,1707283838628,-251.499476,0.00024987,2]
[313395052,1707283838637,-251.499476,0.00024987,2]
[313395053,1707283838646,-251.499476,0.00024987,2]
[313395054,1707283838655,-251.499476,0.00024987,2]
[313395055,1707283838664,-251.499476,0.00024987,2]
[313395056,1707283838673,-251.499476,0.00024987,2]
[313395057,1707283838682,-251.499476,0.00025756,2]
[313395058,1707283838692,-251.499476,0.00025756,2]
[313395059,1707283838703,-153.0,0.00025756,2]
[313395060,1707283838712,-406.578585,0.00025756,2]
[313395061,1707283838720,-306.3485963,0.00025756,2]
[313395062,1707283838730,-332.1351926,0.00025756,2]
[313395063,1707283838738,-320.5247378,0.00025756,2]
[313395064,1707283838747,-199.9099361,0.00025756,2]
[313395065,1707283838756,-153.0,0.00025756,2]
[313395066,1707283838766,-153.0,0.00025756,2]
[313395067,1707283838775,-153.0,0.00025756,2]
[313395068,1707283838784,-153.0,0.00025756,2]
[313395069,1707283838793,-153.0,0.00025756,2]
[313395070,1707283838803,-153.0,0.00025756,2]
[313395071,1707283838812,-153.0,0.00025756,2]
[313395072,1707283838821,-199.9099361,0.00025756,2]
[313395073,1707283838831,-153.0,0.00025756,2]
[313395074,1707283838840,-199.9099361,0.00025756,2]
[313395075,1707283838849,-153.0,0.00025756,2]
[313395076,1707283838858,-153.0,0.00025756,2]
[313395077,1707283838867,-153.0,0.00025756,2]
[313395078,1707283838876,-153.0,0.00025756,2]
[313395079,1707283838885,-153.0,0.00025756,2]
[313395080,1707283838894,-153.0,0.00025756,2]
[313395081,1707283838903,-153.0,0.00025756,2]
[313395082,1707283838912,-153.8150967,0.00025778,2]
[313395083,1707283838922,-451.0193665,0.00025778,2]
[313395084,1707283838930,-199.351588,0.00025778,2]
[313395085,1707283838939,-153.0,0.00025778,2]
[313395086,1707283838948,-153.0,0.00025856,2]
[313395087,1707283838957,-153.0,0.00025856,2]
[313395088,1707283838966,-153.0,0.00025856,2]
[313395089,1707283838975,-199.6326697,0.00025856,2]
[313395090,1707283838984,-153.0,0.00025856,2]
[313395091,1707283838994,-6199.70287775,0.00026254,2]
[313395092,1707283839002,-251.499476,0.00026254,2]
[313395093,1707283839011,-251.499476,0.00026254,2]
[313395094,1707283839020,-8700.2095218,0.0002658,4]
[313395095,1707283839030,-251.499476,0.0002658,2]
[313395096,1707283839039,-251.499476,0.0002658,2]
[313395097,1707283839048,-497.06282314,0.000267,2]
[313395098,1707283839057,-500.0,0.00027,2]
[313395099,1707283839066,-2000.0,0.00027,3]
[313395100,1707283839075,-251.499476,0.00027,2]
[313395101,1707283839084,-251.499482,0.00027,2]
[313395102,1707283839094,-2903.79442824,0.00027121,2]
[313395103,1707283839103,-280.0,0.00027194,15]
[313395104,1707283839112,-5000.0,0.00027211,2]
[313395105,1707283839122,-5000.0,0.00027211,2]
[313395106,1707283839131,-1091.03792421,0.00027288,2]
[313395107,1707283839141,-178.23427574,0.00027377,2]
[313395108,1707283839150,-194.66800922,0.00027387,2]
[313395109,1707283839159,-500.0,0.00027387,2]
[313395110,1707283839168,-500.0,0.00027387,2]
[313395111,1707283839177,-3441.00940005,0.00027387,2]
[313395112,1707283839187,-500.0,0.00027387,2]
[313395113,1707283839196,-500.0,0.00027387,2]
[313395114,1707283839206,-500.0,0.00027387,2]
[313395115,1707283839215,-500.0,0.00027387,2]
[313395116,1707283839224,-500.0,0.00027387,2]
[313395117,1707283839234,-3441.00940005,0.00027387,2]
[313395118,1707283839243,-500.0,0.00027387,2]
[313395119,1707283839252,-81.96939407,0.00027387,2]
[313395120,1707283839265,-3359.04000598,0.00027387,2]
[313395121,1707283839275,-564.69867138,0.00027387,2]
[313395122,1707283839284,-500.0,0.00027387,2]
[313395123,1707283839294,-500.0,0.00027387,2]
[313395124,1707283839303,-500.0,0.00027387,2]
[313395125,1707283839312,-500.0,0.00027387,2]
[313395126,1707283839322,-500.0,0.00027387,2]
[313395127,1707283839332,-3441.00940005,0.00027387,2]
[313395128,1707283839341,-500.0,0.00027387,2]
[313395129,1707283839351,-3441.00940005,0.00027387,2]
[313395130,1707283839360,-561.11687475,0.00027387,2]
[313395131,1707283839370,-500.0,0.00027387,2]
[313395132,1707283839380,-459.30045149,0.00027387,2]
[313395133,1707283839389,-3441.00940005,0.00027387,2]
[313395134,1707283839398,-646.29846602,0.00027387,2]
[313395135,1707283839407,-500.0,0.00027387,2]
[313395136,1707283839417,-500.0,0.00027387,2]
[313395137,1707283839426,-491.94896222,0.00027387,2]
[313395138,1707283839435,-3441.00940005,0.00027387,2]
[313395139,1707283839445,-500.0,0.00027387,2]
[313395140,1707283839455,-3441.00940005,0.00027387,2]
[313395141,1707283839465,-500.0,0.00027387,2]
[313395142,1707283839474,-3441.00940005,0.00027387,2]
[313395143,1707283839484,-500.0,0.00027387,2]
[313395144,1707283839493,-500.0,0.00027387,2]
[313395145,1707283839502,-3441.00940005,0.00027387,2]
[313395146,1707283839511,-3441.00940005,0.00027387,2]
[313395147,1707283839520,-500.0,0.00027387,2]
[313395148,1707283839529,-500.0,0.00027387,2]
[313395149,1707283839539,-3441.00940005,0.00027387,2]
[313395150,1707283839548,-3441.00940005,0.00027387,2]
[313395151,1707283839557,-500.0,0.00027387,2]
[313395152,1707283839566,-3441.00940005,0.00027387,2]
[313395153,1707283839575,-213.08885652,0.00027387,2]
[313395167,1707283841414,-286.91114348,0.00027387,2]
[313395168,1707283841423,-142.63385652,0.00027387,2]
[313395227,1707283846151,-5876.76,0.00027377,3]
[313395228,1707283846162,-3298.37554353,0.00027387,2]
[313395229,1707283846171,-500.0,0.00027387,2]
[313395230,1707283846181,-3441.00940005,0.00027387,2]
[313395231,1707283846191,-500.0,0.00027387,2]
[313395232,1707283846200,-3441.00940005,0.00027387,2]
[313395233,1707283846210,-500.0,0.00027387,2]
[313395235,1707283846219,-3441.00940005,0.00027387,2]
[313395237,1707283846228,-434.96932923,0.00027387,2]
[313395240,1707283846238,-3441.00940005,0.00027387,2]
[313395241,1707283846247,-500.0,0.00027387,2]
[313395243,1707283846257,-3223.85075896,0.00027387,2]
[313395314,1707285032214,-250.0,0.00024134,2]
[313395315,1707285032223,-155.02170304,0.00024159,4]
[313395316,1707285032233,-573.28461195,0.00025021,2]
[313395317,1707285032242,-7847.65524114,0.00025022,2]
[313395318,1707285032253,-2706.3519886,0.00025022,2]
[313395319,1707285032262,-3781.00774103,0.00025028,2]
[313395330,1707285038382,-832.56146743,0.00025028,2]
[313395331,1707285038392,-317.40873546,0.00025028,2]
[313395332,1707285038401,-3155.3178456,0.00025028,2]
[313395333,1707285038410,-17947.85800076,0.000252,2]
[313395416,1707285046449,-4737.89505594,0.000252,2]
[313395417,1707285046458,-477.97213215,0.00025287,2]
[313395418,1707285046468,-181.0199692,0.00025367,2]
[313395419,1707285046477,-337.94453883,0.00025801,2]
[313395420,1707285046487,-200.0,0.00026575,15]
[313395421,1707285046497,-2500.0,0.00027,3]
[313395422,1707285046507,-1272.76830365,0.00027229,2]
[313395508,1707286238606,-357.85042828,0.00023144,2]
[313395509,1707286238616,-155.02170304,0.00023145,4]
[313395510,1707286238626,-4495.12556647,0.00023145,2]
[313395511,1707286238635,-1586.95007472,0.00023146,2]
[313395512,1707286238645,-2554.86418216,0.00023153,2]
[313395513,1707286238654,-526.83777105,0.00023187,2]
[313395514,1707286238663,-6341.96928957,0.00025033,2]
[313395515,1707286238673,-1883.22749483,0.00025033,2]
[313395516,1707286238682,-559.6682785,0.00025148,2]
[313395517,1707286238692,-200.0,0.00025469,7]
[313395518,1707286238702,-503.39458784,0.00026006,5]
[313395519,1707286238711,-152.03487208,0.00026903,2]
[313395520,1707286238721,-153.34537342,0.00027093,2]
[313395521,1707286238731,-3727.23169635,0.00027229,2]
[313395523,1707286238741,-313.17501102,0.00027229,6]
[313395525,1707286238750,-155.02170304,0.00027229,2]
[313395527,1707286238759,-308.5438649,0.0002726,2]
[313395529,1707286238768,-254.83671761,0.00027269,2]
[313395531,1707286238777,-981.93413178,0.00027297,2]
[313395533,1707286238786,-500.0,0.000273,2]
[313395535,1707286238795,-6311.07,0.00027358,3]
[313395537,1707286238806,-5259.22,0.00027358,3]
[313395539,1707286238814,-2968.67711669,0.00027358,3]
[313395555,1707286241668,-500.0,0.00027367,2]
[313395557,1707286241678,-826.1537254,0.00027367,2]
[313395636,1707286246561,-538.61450309,0.00027357,3]
[313395700,1707287434748,-155.02170304,0.00024629,4]
[313395703,1707287434761,-4495.12556647,0.00024999,2]
[313395705,1707287434770,-2835.28260096,0.00025,3]
[313395707,1707287434779,-2503.50783544,0.00025045,2]
[313395711,1707287434789,-422.79795264,0.00025051,2]
[313395713,1707287434799,-490.01830267,0.00025258,2]
[313395715,1707287434808,-6889.0441508,0.00025675,2]
[313395717,1707287434818,-153.7149124,0.00026478,2]
[313395719,1707287434827,-156.4304217,0.00027229,2]
[313395721,1707287434836,-228.80459473,0.00027257,3]
[313395723,1707287434844,-883.74071862,0.00027297,2]
[313395725,1707287434853,-500.0,0.000273,2]
[313395727,1707287434862,-171.759388,0.000273,3]
[313395729,1707287434871,-152.05651612,0.00027302,2]
[313395731,1707287434881,-4193.58,0.00027348,3]
[313395733,1707287434890,-3494.65,0.00027348,3]
[313395735,1707287434900,-2912.21,0.00027348,3]
[313395737,1707287434909,-2426.84,0.00027348,3]
[313395739,1707287434918,-313.17501102,0.00027357,6]
[313395741,1707287434927,-500.0,0.00027357,2]
[313395743,1707287434936,-500.0,0.00027357,2]
[313395745,1707287434946,-2141.95043357,0.00027357,2]
[313395746,1707287434955,-182.92205178,0.00027357,2]
[313395748,1707287434964,-276.88321802,0.00027357,2]
[313395750,1707287434974,-2141.95043357,0.00027357,2]
[313395753,1707287434983,-500.0,0.00027357,2]
[313395755,1707287434992,-389.43984941,0.00027364,2]
[313395756,1707287435002,-151.0,0.00027364,2]
[313395758,1707287435011,-318.21113697,0.00027365,2]
[313395759,1707287435020,-1140.64042297,0.00027366,2]
[313395760,1707287435029,-1290.65162282,0.00027368,2]
[313395761,1707287435039,-1832.47943976,0.00027375,3]
[313395762,1707287435048,-722.4619928,0.00027375,2]
[313395764,1707287435058,-337.17543562,0.00027385,2]
[313395766,1707287435068,-1192.72550333,0.00027385,2]
[313395768,1707287435077,-227.16794943,0.00027385,2]
[313395770,1707287435087,-1795.60140389,0.00027385,2]
[313395772,1707287435097,-1089.36539196,0.00027386,2]
[313395773,1707287435107,-189.68444313,0.00027386,2]
[313395775,1707287435117,-1055.10787015,0.00027395,2]
[313395777,1707287435128,-714.17367937,0.00027395,2]
[313395780,1707287435143,-875.23720896,0.00027395,2]
[313395782,1707287435153,-1905.16854665,0.00027395,2]
[313395784,1707287435164,-240.02463234,0.00027395,2]
[313395786,1707287435175,-1480.29449842,0.00027395,2]
[313395788,1707287435186,-587.32300757,0.00027395,2]
[313395790,1707287435197,-155.45528674,0.00027395,2]
[313395792,1707287435207,-276.97069819,0.00027395,2]
[313395794,1707287435218,-572.02499017,0.00027395,2]
[313395796,1707287435228,-2333.78312662,0.00027395,2]
[313395848,1707287438771,-733.75,0.00025062,2]
[313395988,1707288631959,-718.01783563,0.00021448,2]
[313395989,1707288631972,-1433.85476497,0.00021448,2]
[313395991,1707288631984,-44.49662541,0.00021449,2]
[313395993,1707288632000,-5253.30965585,0.00021449,2]
[313396155,1707289249308,269.108808,0.00017883,2]
[313396156,1707289294100,3000.0,0.00017877,2]
[313396157,1707289308110,155.02170304,0.00017883,2]
[313396158,1707289322103,155.71054985,0.00017883,2]
[313396159,1707289667445,155.02170304,0.00018017,3]
[313396160,1707289671736,269.108808,0.00017831,2]
[313396161,1707289736369,1603.6984376,0.00017687,2]
[313396177,1707289831977,-454.26835317,0.00018006,2]
[313396178,1707289831986,-3278.63164683,0.00018007,2]
[313396179,1707289831997,-522.49468692,0.00018007,2]
[313396210,1707289838133,-378.7302924,0.00018007,2]
[313396211,1707289838143,-718.01783563,0.00018007,2]
[313396212,1707289838152,-2757.64070708,0.00018008,2]
[313396213,1707289838188,-5224.03163639,0.00018008,2]
[313396214,1707289838197,-155.02170304,0.00018008,2]
[313396215,1707289838207,-906.16625216,0.00018008,2]
[313396216,1707289838217,-2605.96968944,0.00018009,2]
[313396217,1707289838228,-295.73444606,0.00018009,2]
[313396218,1707289838237,-250.0,0.0001802,2]
[313396219,1707289838247,-684.3280248,0.00018025,2]
[313396220,1707289838256,-1198.38349958,0.00018979,2]
[313396221,1707289838265,-542.5792804,0.00019349,2]
[313396222,1707289838274,-200.0,0.00019826,2]
[313396223,1707289838285,-24900.0,0.00019941,2]
[313396224,1707289838294,-323.9970875,0.0002,2]
[313396225,1707289838304,-155.02170304,0.00020794,4]
[313396226,1707289838313,-1200.7118793,0.00020795,2]
[313396227,1707289838322,-156.4351834,0.00021449,2]
[313396228,1707289838332,-151.0,0.00021766,2]
[313396229,1707289838342,-280.0,0.00021808,7]
[313396230,1707289838352,-167.542562,0.00023404,2]
[313396231,1707289838362,-151.0,0.00023592,2]
[313396232,1707289838371,-391.0,0.00023989,7]
[313396233,1707289838380,-542.5792804,0.00024349,2]
[313396234,1707289838389,-2949.01,0.00024951,3]
[313396235,1707289838398,-5623.56,0.00024951,3]
[313396236,1707289838410,-741.39467799,0.0002496,2]